[Event "Titled Tuesday Blitz March 07 Early 2023"]
[White "Mazurkiewicz, Michal"]
[Black "babbilator"]
[WhiteFideId "1124943"]
[WhiteElo "2054"]
[BlackElo "2219"]
[Result "1-0"]
[Round "09"]
[TimeControl "180+2"]
[Date "2023.03.07"]
[WhiteClock "0:01:52"]
[BlackClock "0:00:03"]

1. e4 {[%clk 0:02:59]}  c5 {[%clk 0:02:56]} 2. Nf3 {[%clk 0:02:59]}  e6 {[%clk 0:02:56]} 3. d3 {[%clk 0:03:00]}  d5 {[%clk 0:02:55]} 4. Nbd2 {[%clk 0:02:59]}  Nc6 {[%clk 0:02:55]} 5. g3 {[%clk 0:03:00]}  Nf6 {[%clk 0:02:55]} 6. Bg2 {[%clk 0:03:00]}  Be7 {[%clk 0:02:56]} 7. O-O {[%clk 0:03:00]}  b5 {[%clk 0:02:56]} 8. Re1 {[%clk 0:02:59]}  b4 {[%clk 0:02:56]} 9. h4 {[%clk 0:02:54]}  a5 {[%clk 0:02:55]} 10. c3 {[%clk 0:02:53]}  bxc3 {[%clk 0:02:48]} 11. bxc3 {[%clk 0:02:54]}  Ba6 {[%clk 0:02:46]} 12. e5 {[%clk 0:02:48]}  Nd7 {[%clk 0:02:46]} 13. Nf1 {[%clk 0:02:45]}  Nb6 {[%clk 0:02:17]} 14. Bf4 {[%clk 0:02:35]}  h6 {[%clk 0:02:17]} 15. Ne3 {[%clk 0:02:33]}  Rb8 {[%clk 0:01:57]} 16. Rb1 {[%clk 0:02:30]}  Qd7 {[%clk 0:01:29]} 17. h5 {[%clk 0:02:19]}  a4 {[%clk 0:01:21]} 18. Qc2 {[%clk 0:02:07]}  O-O {[%clk 0:00:45]} 19. Ng4 {[%clk 0:02:06]}  d4 {[%clk 0:00:34]} 20. c4 {[%clk 0:02:06]}  Nb4 {[%clk 0:00:34]} 21. Qd2 {[%clk 0:02:06]}  Bxc4 {[%clk 0:00:15]} 22. dxc4 {[%clk 0:02:01]}  Nxc4 {[%clk 0:00:16]} 23. Qc1 {[%clk 0:02:02]}  Nb6 {[%clk 0:00:14]} 24. Rxb4 {[%clk 0:01:52]}  cxb4 {[%clk 0:00:11]} 25. Bxh6 {[%clk 0:01:52]}  Rbc8 {[%clk 0:00:06]} 26. Qd2 {[%clk 0:01:52]}  Nc4 {[%clk 0:00:04]} 27. Qf4 {[%clk 0:01:51]}  d3 {[%clk 0:00:03]} 28. Bxg7 {[%clk 0:01:50]}  Kxg7 {[%clk 0:00:04]} 29. Qh6+ {[%clk 0:01:51]}  Kg8 {[%clk 0:00:03]} 30. Nf6+ {[%clk 0:01:51]}  Bxf6 {[%clk 0:00:03]} 31. exf6 {[%clk 0:01:52]} 1-0


[Site "https://www.chess.com"]

[Event "Titled Tuesday Blitz March 07 Early 2023"]
[White "Dinu, Dumitru-Daniel"]
[Black "Ardila, Oscar Humberto"]
[WhiteFideId "1208403"]
[BlackFideId "4404742"]
[WhiteElo "2240"]
[BlackElo "1911"]
[Result "1-0"]
[Round "09"]
[TimeControl "180+2"]
[Date "2023.03.07"]
[WhiteClock "0:00:17"]
[BlackClock "0:00:03"]

1. e4 {[%clk 0:03:00]}  e5 {[%clk 0:02:36]} 2. Nf3 {[%clk 0:03:00]}  Nf6 {[%clk 0:02:36]} 3. Nxe5 {[%clk 0:02:57]}  d6 {[%clk 0:02:36]} 4. Nf3 {[%clk 0:02:56]}  Nxe4 {[%clk 0:02:36]} 5. d3 {[%clk 0:02:51]}  Nf6 {[%clk 0:02:36]} 6. d4 {[%clk 0:02:52]}  Bg4 {[%clk 0:02:36]} 7. h3 {[%clk 0:02:47]}  Bh5 {[%clk 0:02:36]} 8. Bd3 {[%clk 0:02:39]}  Be7 {[%clk 0:02:35]} 9. O-O {[%clk 0:02:39]}  O-O {[%clk 0:02:35]} 10. Bf4 {[%clk 0:02:38]}  Nbd7 {[%clk 0:02:34]} 11. Nbd2 {[%clk 0:02:37]}  Re8 {[%clk 0:02:30]} 12. Re1 {[%clk 0:02:37]}  Nf8 {[%clk 0:02:30]} 13. c3 {[%clk 0:02:37]}  Qd7 {[%clk 0:02:28]} 14. Qc2 {[%clk 0:02:36]}  Bg6 {[%clk 0:02:28]} 15. Re2 {[%clk 0:02:26]}  Bxd3 {[%clk 0:02:28]} 16. Qxd3 {[%clk 0:02:27]}  Ng6 {[%clk 0:02:28]} 17. Bg3 {[%clk 0:02:24]}  Nd5 {[%clk 0:02:23]} 18. Qc2 {[%clk 0:02:19]}  Ndf4 {[%clk 0:02:21]} 19. Re3 {[%clk 0:02:08]}  Bf8 {[%clk 0:02:07]} 20. Rae1 {[%clk 0:02:05]}  Rxe3 {[%clk 0:02:07]} 21. Rxe3 {[%clk 0:02:05]}  Re8 {[%clk 0:02:06]} 22. Qd1 {[%clk 0:01:51]}  Rxe3 {[%clk 0:01:45]} 23. fxe3 {[%clk 0:01:52]}  Nh5 {[%clk 0:01:45]} 24. Bf2 {[%clk 0:01:38]}  Qe6 {[%clk 0:01:45]} 25. Ng5 {[%clk 0:01:34]}  Qxa2 {[%clk 0:01:37]} 26. Qxh5 {[%clk 0:01:32]}  h6 {[%clk 0:01:35]} 27. Ngf3 {[%clk 0:01:19]}  Qxb2 {[%clk 0:01:35]} 28. c4 {[%clk 0:01:12]}  Qa1+ {[%clk 0:01:23]} 29. Kh2 {[%clk 0:01:10]}  c6 {[%clk 0:01:23]} 30. Ne4 {[%clk 0:01:00]}  a5 {[%clk 0:01:20]} 31. Bg3 {[%clk 0:00:49]}  Qa3 {[%clk 0:01:08]} 32. Qf5 {[%clk 0:00:18]}  a4 {[%clk 0:01:03]} 33. Nfg5 {[%clk 0:00:16]}  hxg5 {[%clk 0:00:57]} 34. Nxg5 {[%clk 0:00:17]}  Qxe3 {[%clk 0:00:09]} 35. Qxf7+ {[%clk 0:00:16]}  Kh8 {[%clk 0:00:10]} 36. Qxg6 {[%clk 0:00:17]}  Be7 {[%clk 0:00:03]} 37. Qh7# {[%clk 0:00:17]} 1-0


[Site "https://www.chess.com"]

[Event "Titled Tuesday Blitz March 07 Early 2023"]
[White "Djokovic, Nebojsa"]
[Black "Ruge, Edison"]
[WhiteFideId "938300"]
[BlackFideId "4401000"]
[WhiteElo "2562"]
[BlackElo "2175"]
[Result "0-1"]
[Round "09"]
[TimeControl "180+2"]
[Date "2023.03.07"]
[WhiteClock "0:00:07"]
[BlackClock "0:00:10"]

1. e4 {[%clk 0:03:00]}  e5 {[%clk 0:02:59]} 2. Nf3 {[%clk 0:03:01]}  Nc6 {[%clk 0:02:59]} 3. Bb5 {[%clk 0:03:01]}  f5 {[%clk 0:02:57]} 4. d3 {[%clk 0:03:00]}  fxe4 {[%clk 0:02:56]} 5. dxe4 {[%clk 0:03:00]}  Nf6 {[%clk 0:02:57]} 6. Nc3 {[%clk 0:03:00]}  Bb4 {[%clk 0:02:57]} 7. O-O {[%clk 0:02:58]}  Bxc3 {[%clk 0:02:57]} 8. bxc3 {[%clk 0:02:59]}  d6 {[%clk 0:02:57]} 9. Bc4 {[%clk 0:02:53]}  Qe7 {[%clk 0:02:56]} 10. Bg5 {[%clk 0:02:50]}  Nd8 {[%clk 0:02:56]} 11. Bh4 {[%clk 0:02:32]}  Be6 {[%clk 0:02:54]} 12. Qe2 {[%clk 0:02:28]}  O-O {[%clk 0:02:43]} 13. Rab1 {[%clk 0:02:25]}  b6 {[%clk 0:02:41]} 14. Ng5 {[%clk 0:02:20]}  Bxc4 {[%clk 0:02:27]} 15. Qxc4+ {[%clk 0:02:21]}  Kh8 {[%clk 0:02:27]} 16. f4 {[%clk 0:02:16]}  h6 {[%clk 0:02:18]} 17. Nh3 {[%clk 0:02:04]}  Qf7 {[%clk 0:02:03]} 18. Qd3 {[%clk 0:01:55]}  Ne6 {[%clk 0:01:58]} 19. fxe5 {[%clk 0:01:52]}  dxe5 {[%clk 0:01:58]} 20. Bxf6 {[%clk 0:01:53]}  gxf6 {[%clk 0:01:57]} 21. Nf2 {[%clk 0:01:51]}  Nf4 {[%clk 0:01:56]} 22. Qf3 {[%clk 0:01:51]}  Rg8 {[%clk 0:01:47]} 23. g3 {[%clk 0:01:48]}  Qxa2 {[%clk 0:01:30]} 24. Kh1 {[%clk 0:01:45]}  Ng6 {[%clk 0:01:10]} 25. Qxf6+ {[%clk 0:01:45]}  Rg7 {[%clk 0:01:09]} 26. Ng4 {[%clk 0:01:24]}  Qxc2 {[%clk 0:01:08]} 27. Rbe1 {[%clk 0:01:15]}  Rf8 {[%clk 0:00:56]} 28. Qc6 {[%clk 0:01:15]}  Rxf1+ {[%clk 0:00:54]} 29. Rxf1 {[%clk 0:01:16]}  Qe2 {[%clk 0:00:49]} 30. Qe8+ {[%clk 0:00:25]}  Rg8 {[%clk 0:00:46]} 31. Qf7 {[%clk 0:00:25]}  Qxg4 {[%clk 0:00:43]} 32. Qf6+ {[%clk 0:00:24]}  Rg7 {[%clk 0:00:42]} 33. Re1 {[%clk 0:00:21]}  Qd7 {[%clk 0:00:36]} 34. Rf1 {[%clk 0:00:20]}  Kh7 {[%clk 0:00:35]} 35. h4 {[%clk 0:00:20]}  Qg4 {[%clk 0:00:34]} 36. Kh2 {[%clk 0:00:19]}  Qxe4 {[%clk 0:00:33]} 37. h5 {[%clk 0:00:15]}  Ne7 {[%clk 0:00:32]} 38. Rf3 {[%clk 0:00:15]}  Qc2+ {[%clk 0:00:30]} 39. Kh3 {[%clk 0:00:15]}  Qe4 {[%clk 0:00:29]} 40. Kh2 {[%clk 0:00:10]}  Qg4 {[%clk 0:00:29]} 41. Re3 {[%clk 0:00:05]}  Qxh5+ {[%clk 0:00:29]} 42. Kg2 {[%clk 0:00:06]}  Qg5 {[%clk 0:00:27]} 43. Qf3 {[%clk 0:00:05]}  Ng6 {[%clk 0:00:25]} 44. Qe4 {[%clk 0:00:05]}  Rf7 {[%clk 0:00:21]} 45. Rd3 {[%clk 0:00:03]}  Kg7 {[%clk 0:00:21]} 46. Kh2 {[%clk 0:00:02]}  Qh5+ {[%clk 0:00:20]} 47. Kg2 {[%clk 0:00:02]}  Qg5 {[%clk 0:00:20]} 48. Kh2 {[%clk 0:00:03]}  Qf5 {[%clk 0:00:20]} 49. Qd5 {[%clk 0:00:02]}  Nf4 {[%clk 0:00:18]} 50. gxf4 {[%clk 0:00:01]}  exf4 {[%clk 0:00:19]} 51. Qg2+ {[%clk 0:00:01]}  Kh7 {[%clk 0:00:18]} 52. Rd5 {[%clk 0:00:01]}  Qg6 {[%clk 0:00:17]} 53. Qf3 {[%clk 0:00:01]}  Qg3+ {[%clk 0:00:17]} 54. Qxg3 {[%clk 0:00:01]}  fxg3+ {[%clk 0:00:17]} 55. Kxg3 {[%clk 0:00:02]}  a5 {[%clk 0:00:18]} 56. Re5 {[%clk 0:00:02]}  Kg6 {[%clk 0:00:15]} 57. Kg4 {[%clk 0:00:03]}  Kf6 {[%clk 0:00:14]} 58. Rf5+ {[%clk 0:00:03]}  Ke6 {[%clk 0:00:15]} 59. Rh5 {[%clk 0:00:04]}  Rf6 {[%clk 0:00:14]} 60. Kg3 {[%clk 0:00:04]}  Kd6 {[%clk 0:00:14]} 61. c4 {[%clk 0:00:04]}  c5 {[%clk 0:00:14]} 62. Rd5+ {[%clk 0:00:04]}  Kc6 {[%clk 0:00:14]} 63. Rh5 {[%clk 0:00:04]}  a4 {[%clk 0:00:15]} 64. Kg4 {[%clk 0:00:04]}  Rd6 {[%clk 0:00:14]} 65. Kf5 {[%clk 0:00:02]}  a3 {[%clk 0:00:14]} 66. Rh3 {[%clk 0:00:01]}  a2 {[%clk 0:00:11]} 67. Ra3 {[%clk 0:00:02]}  Rd2 {[%clk 0:00:12]} 68. Ke5 {[%clk 0:00:03]}  h5 {[%clk 0:00:11]} 69. Kf4 {[%clk 0:00:03]}  h4 {[%clk 0:00:11]} 70. Kg4 {[%clk 0:00:03]}  Rd4+ {[%clk 0:00:11]} 71. Kg5 {[%clk 0:00:02]}  Rxc4 {[%clk 0:00:11]} 72. Rxa2 {[%clk 0:00:02]}  b5 {[%clk 0:00:12]} 73. Ra6+ {[%clk 0:00:02]}  Kd5 {[%clk 0:00:11]} 74. Rg6 {[%clk 0:00:03]}  Re4 {[%clk 0:00:11]} 75. Kf5 {[%clk 0:00:04]}  Rc4 {[%clk 0:00:10]} 76. Rg8 {[%clk 0:00:04]}  Kd4 {[%clk 0:00:10]} 77. Rg4+ {[%clk 0:00:02]}  Kc3 {[%clk 0:00:11]} 78. Rg1 {[%clk 0:00:03]}  Kb2 {[%clk 0:00:12]} 79. Ke5 {[%clk 0:00:04]}  b4 {[%clk 0:00:12]} 80. Kd5 {[%clk 0:00:04]}  Rc2 {[%clk 0:00:13]} 81. Rg8 {[%clk 0:00:04]}  b3 {[%clk 0:00:11]} 82. Rb8 {[%clk 0:00:04]}  c4 {[%clk 0:00:11]} 83. Kd4 {[%clk 0:00:04]}  c3 {[%clk 0:00:12]} 84. Kc4 {[%clk 0:00:04]}  Rg2 {[%clk 0:00:11]} 85. Rxb3+ {[%clk 0:00:05]}  Kc2 {[%clk 0:00:10]} 86. Rxc3+ {[%clk 0:00:05]}  Kd2 {[%clk 0:00:09]} 87. Rh3 {[%clk 0:00:03]}  Rg4+ {[%clk 0:00:09]} 88. Kd5 {[%clk 0:00:03]}  Ke2 {[%clk 0:00:10]} 89. Ke5 {[%clk 0:00:04]}  Kf2 {[%clk 0:00:10]} 90. Kf5 {[%clk 0:00:05]}  Rb4 {[%clk 0:00:10]} 91. Kg5 {[%clk 0:00:05]}  Kg2 {[%clk 0:00:08]} 92. Rxh4 {[%clk 0:00:06]}  Rb5+ {[%clk 0:00:09]} 93. Kh6 {[%clk 0:00:06]}  Rb6+ {[%clk 0:00:09]} 94. Kg7 {[%clk 0:00:06]}  Rb7+ {[%clk 0:00:09]} 95. Kf6 {[%clk 0:00:06]}  Rb6+ {[%clk 0:00:09]} 96. Ke5 {[%clk 0:00:07]}  Rb5+ {[%clk 0:00:10]} 97. Kd6 {[%clk 0:00:07]}  Rb3 {[%clk 0:00:11]} 98. Rg4+ {[%clk 0:00:06]}  Rg3 {[%clk 0:00:11]} 99. Rg8 {[%clk 0:00:07]}  Rxg8 {[%clk 0:00:10]} 0-1


[Site "https://www.chess.com"]

[Event "Titled Tuesday Blitz March 07 Early 2023"]
[White "Borrmann, Laurenz"]
[Black "Prudnykova, Olga"]
[WhiteFideId "312187930"]
[BlackFideId "14121093"]
[WhiteElo "2312"]
[BlackElo "2113"]
[Result "1-0"]
[Round "09"]
[TimeControl "180+2"]
[Date "2023.03.07"]
[WhiteClock "0:00:58"]
[BlackClock "0:00:04"]

1. e4 {[%clk 0:02:34]}  c5 {[%clk 0:02:59]} 2. Bc4 {[%clk 0:02:32]}  e6 {[%clk 0:02:53]} 3. Nc3 {[%clk 0:02:32]}  a6 {[%clk 0:02:52]} 4. a3 {[%clk 0:02:31]}  b5 {[%clk 0:02:51]} 5. Ba2 {[%clk 0:02:32]}  Bb7 {[%clk 0:02:51]} 6. d3 {[%clk 0:02:31]}  Nf6 {[%clk 0:02:40]} 7. Nh3 {[%clk 0:02:27]}  d5 {[%clk 0:02:35]} 8. e5 {[%clk 0:02:23]}  Nfd7 {[%clk 0:02:35]} 9. f4 {[%clk 0:02:24]}  Nc6 {[%clk 0:02:32]} 10. O-O {[%clk 0:02:20]}  g6 {[%clk 0:02:31]} 11. Ne2 {[%clk 0:02:07]}  Be7 {[%clk 0:02:31]} 12. c4 {[%clk 0:02:05]}  Nb6 {[%clk 0:02:20]} 13. cxb5 {[%clk 0:02:00]}  axb5 {[%clk 0:02:19]} 14. d4 {[%clk 0:01:56]}  c4 {[%clk 0:02:17]} 15. Bd2 {[%clk 0:01:53]}  b4 {[%clk 0:02:16]} 16. axb4 {[%clk 0:01:50]}  Nxb4 {[%clk 0:02:15]} 17. Bxb4 {[%clk 0:01:47]}  Bxb4 {[%clk 0:02:14]} 18. Ng3 {[%clk 0:01:47]}  O-O {[%clk 0:02:06]} 19. Qg4 {[%clk 0:01:35]}  Kh8 {[%clk 0:01:45]} 20. Ng5 {[%clk 0:01:34]}  Be7 {[%clk 0:01:40]} 21. Qh4 {[%clk 0:01:27]}  Bxg5 {[%clk 0:01:30]} 22. fxg5 {[%clk 0:01:28]}  Ra4 {[%clk 0:00:48]} 23. Rf4 {[%clk 0:01:22]}  Qa8 {[%clk 0:00:42]} 24. Qh6 {[%clk 0:01:19]}  f5 {[%clk 0:00:18]} 25. gxf6 {[%clk 0:01:10]}  Rf7 {[%clk 0:00:17]} 26. Qh3 {[%clk 0:00:59]}  Rxa2 {[%clk 0:00:16]} 27. Rxa2 {[%clk 0:00:59]}  Qxa2 {[%clk 0:00:16]} 28. Qxe6 {[%clk 0:00:59]}  Rf8 {[%clk 0:00:04]} 29. Qe7 {[%clk 0:00:58]} 1-0


[Site "https://www.chess.com"]

[Event "Titled Tuesday Blitz March 07 Early 2023"]
[White "Kaplan, Avi Harrison"]
[Black "Zampronha, Wladimir Camilo"]
[WhiteFideId "30934559"]
[BlackFideId "2103087"]
[WhiteElo "1983"]
[BlackElo "2176"]
[Result "1/2-1/2"]
[Round "09"]
[TimeControl "180+2"]
[Date "2023.03.07"]
[WhiteClock "0:00:03"]
[BlackClock "0:00:09"]

1. g3 {[%clk 0:02:47]}  Nf6 {[%clk 0:02:57]} 2. f4 {[%clk 0:02:45]}  d5 {[%clk 0:02:58]} 3. Bg2 {[%clk 0:02:43]}  g6 {[%clk 0:02:59]} 4. Nf3 {[%clk 0:02:40]}  Bg7 {[%clk 0:03:00]} 5. O-O {[%clk 0:02:41]}  O-O {[%clk 0:03:00]} 6. d3 {[%clk 0:02:40]}  c5 {[%clk 0:03:00]} 7. Qe1 {[%clk 0:02:40]}  d4 {[%clk 0:03:01]} 8. a4 {[%clk 0:02:39]}  Nc6 {[%clk 0:03:00]} 9. Nbd2 {[%clk 0:02:38]}  Nb4 {[%clk 0:03:01]} 10. Qd1 {[%clk 0:02:36]}  Ng4 {[%clk 0:02:58]} 11. Nc4 {[%clk 0:02:33]}  Be6 {[%clk 0:02:54]} 12. Ng5 {[%clk 0:02:01]}  Bd5 {[%clk 0:02:53]} 13. h3 {[%clk 0:01:44]}  Bxg2 {[%clk 0:02:49]} 14. Kxg2 {[%clk 0:01:42]}  Ne3+ {[%clk 0:02:34]} 15. Bxe3 {[%clk 0:01:13]}  dxe3 {[%clk 0:02:35]} 16. Nxe3 {[%clk 0:01:06]}  Bxb2 {[%clk 0:02:28]} 17. Rb1 {[%clk 0:01:04]}  Bd4 {[%clk 0:02:28]} 18. Nc4 {[%clk 0:01:03]}  Qd7 {[%clk 0:02:18]} 19. Nf3 {[%clk 0:00:59]}  Bg7 {[%clk 0:02:17]} 20. e4 {[%clk 0:00:56]}  Qxa4 {[%clk 0:02:04]} 21. c3 {[%clk 0:00:52]}  Qxd1 {[%clk 0:02:01]} 22. Rfxd1 {[%clk 0:00:43]}  Bxc3 {[%clk 0:02:00]} 23. d4 {[%clk 0:00:41]}  cxd4 {[%clk 0:01:42]} 24. Nxd4 {[%clk 0:00:32]}  Rfd8 {[%clk 0:01:32]} 25. Ne2 {[%clk 0:00:18]}  Rxd1 {[%clk 0:01:33]} 26. Rxd1 {[%clk 0:00:18]}  Bg7 {[%clk 0:01:29]} 27. Rd7 {[%clk 0:00:18]}  b5 {[%clk 0:01:21]} 28. Na3 {[%clk 0:00:17]}  a6 {[%clk 0:01:16]} 29. Rxe7 {[%clk 0:00:17]}  Bb2 {[%clk 0:01:09]} 30. Nb1 {[%clk 0:00:14]}  a5 {[%clk 0:01:03]} 31. Rb7 {[%clk 0:00:14]}  a4 {[%clk 0:01:01]} 32. Rxb5 {[%clk 0:00:06]}  a3 {[%clk 0:01:01]} 33. Nd2 {[%clk 0:00:06]}  Nc2 {[%clk 0:00:57]} 34. Nb3 {[%clk 0:00:02]}  Bf6 {[%clk 0:00:45]} 35. e5 {[%clk 0:00:02]}  Be7 {[%clk 0:00:45]} 36. Nec1 {[%clk 0:00:02]}  a2 {[%clk 0:00:38]} 37. Rb7 {[%clk 0:00:02]}  Ba3 {[%clk 0:00:29]} 38. Nxa2 {[%clk 0:00:02]}  Bf8 {[%clk 0:00:19]} 39. Nac1 {[%clk 0:00:02]}  Ne3+ {[%clk 0:00:17]} 40. Kf3 {[%clk 0:00:02]}  Nf5 {[%clk 0:00:18]} 41. Kg4 {[%clk 0:00:02]}  h5+ {[%clk 0:00:17]} 42. Kf3 {[%clk 0:00:02]}  Ra3 {[%clk 0:00:16]} 43. g4 {[%clk 0:00:03]}  hxg4+ {[%clk 0:00:15]} 44. hxg4 {[%clk 0:00:03]}  Nd4+ {[%clk 0:00:14]} 45. Ke4 {[%clk 0:00:03]}  Nxb3 {[%clk 0:00:14]} 46. Nxb3 {[%clk 0:00:04]}  Ra4+ {[%clk 0:00:14]} 47. Kf3 {[%clk 0:00:04]}  Rc4 {[%clk 0:00:14]} 48. f5 {[%clk 0:00:04]}  Rc3+ {[%clk 0:00:14]} 49. Kf4 {[%clk 0:00:04]}  gxf5 {[%clk 0:00:14]} 50. gxf5 {[%clk 0:00:05]}  Rc4+ {[%clk 0:00:15]} 51. Kg5 {[%clk 0:00:05]}  Rc2 {[%clk 0:00:15]} 52. Nd4 {[%clk 0:00:05]}  Rg2+ {[%clk 0:00:13]} 53. Kf4 {[%clk 0:00:05]}  Rg1 {[%clk 0:00:13]} 54. f6 {[%clk 0:00:05]}  Rf1+ {[%clk 0:00:13]} 55. Ke4 {[%clk 0:00:05]}  Re1+ {[%clk 0:00:13]} 56. Kd5 {[%clk 0:00:06]}  Rd1 {[%clk 0:00:13]} 57. Rb2 {[%clk 0:00:06]}  Kh7 {[%clk 0:00:12]} 58. Rh2+ {[%clk 0:00:06]}  Kg6 {[%clk 0:00:12]} 59. Rg2+ {[%clk 0:00:06]}  Kh7 {[%clk 0:00:13]} 60. Ke4 {[%clk 0:00:06]}  Bc5 {[%clk 0:00:12]} 61. Nf5 {[%clk 0:00:05]}  Re1+ {[%clk 0:00:13]} 62. Kd5 {[%clk 0:00:06]}  Bf8 {[%clk 0:00:09]} 63. Rh2+ {[%clk 0:00:05]}  Kg6 {[%clk 0:00:09]} 64. Ne7+ {[%clk 0:00:06]}  Kg5 {[%clk 0:00:09]} 65. Rh8 {[%clk 0:00:06]}  Rd1+ {[%clk 0:00:09]} 66. Ke4 {[%clk 0:00:05]}  Re1+ {[%clk 0:00:10]} 67. Kd4 {[%clk 0:00:04]}  Rd1+ {[%clk 0:00:10]} 68. Kc3 {[%clk 0:00:05]}  Rd8 {[%clk 0:00:09]} 69. Rg8+ {[%clk 0:00:05]}  Kf4 {[%clk 0:00:09]} 70. Rg1 {[%clk 0:00:04]}  Bxe7 {[%clk 0:00:08]} 71. fxe7 {[%clk 0:00:04]}  Re8 {[%clk 0:00:08]} 72. Rf1+ {[%clk 0:00:04]}  Kxe5 {[%clk 0:00:08]} 73. Rxf7 {[%clk 0:00:05]}  Ke6 {[%clk 0:00:09]} 74. Rf1 {[%clk 0:00:05]}  Rxe7 {[%clk 0:00:10]} 75. Kd4 {[%clk 0:00:05]}  Rf7 {[%clk 0:00:10]} 76. Re1+ {[%clk 0:00:06]}  Kd6 {[%clk 0:00:10]} 77. Ra1 {[%clk 0:00:05]}  Rf4+ {[%clk 0:00:10]} 78. Ke3 {[%clk 0:00:06]}  Rh4 {[%clk 0:00:11]} 79. Ra6+ {[%clk 0:00:05]}  Kc5 {[%clk 0:00:11]} 80. Ra5+ {[%clk 0:00:05]}  Kb6 {[%clk 0:00:12]} 81. Rg5 {[%clk 0:00:05]}  Rh3+ {[%clk 0:00:12]} 82. Kd4 {[%clk 0:00:05]}  Rb3 {[%clk 0:00:12]} 83. Rg8 {[%clk 0:00:04]}  Rb4+ {[%clk 0:00:12]} 84. Kd5 {[%clk 0:00:04]}  Rb5+ {[%clk 0:00:12]} 85. Kd6 {[%clk 0:00:05]}  Ka5 {[%clk 0:00:12]} 86. Rg1 {[%clk 0:00:05]}  Rb6+ {[%clk 0:00:12]} 87. Kc5 {[%clk 0:00:06]}  Rb5+ {[%clk 0:00:12]} 88. Kc4 {[%clk 0:00:06]}  Rb4+ {[%clk 0:00:13]} 89. Kc3 {[%clk 0:00:07]}  Rb5 {[%clk 0:00:12]} 90. Kc4 {[%clk 0:00:06]}  Rb4+ {[%clk 0:00:12]} 91. Kc3 {[%clk 0:00:06]}  Rb5 {[%clk 0:00:12]} 92. Rg8 {[%clk 0:00:06]}  Rc5+ {[%clk 0:00:12]} 93. Kd4 {[%clk 0:00:07]}  Rb5 {[%clk 0:00:12]} 94. Ra8+ {[%clk 0:00:06]}  Kb4 {[%clk 0:00:12]} 95. Ra1 {[%clk 0:00:06]}  Kb3 {[%clk 0:00:08]} 96. Rb1+ {[%clk 0:00:06]}  Ka4 {[%clk 0:00:08]} 97. Ra1+ {[%clk 0:00:05]}  Kb4 {[%clk 0:00:08]} 98. Rh1 {[%clk 0:00:05]}  Rg5 {[%clk 0:00:08]} 99. Rb1+ {[%clk 0:00:04]}  Ka5 {[%clk 0:00:07]} 100. Ra1+ {[%clk 0:00:02]}  Kb5 {[%clk 0:00:07]} 101. Rb1+ {[%clk 0:00:03]}  Ka5 {[%clk 0:00:06]} 102. Kc4 {[%clk 0:00:03]}  Rh5 {[%clk 0:00:06]} 103. Ra1+ {[%clk 0:00:02]}  Kb6 {[%clk 0:00:06]} 104. Rg1 {[%clk 0:00:03]}  Rh4+ {[%clk 0:00:06]} 105. Kd5 {[%clk 0:00:03]}  Rh5+ {[%clk 0:00:06]} 106. Kd6 {[%clk 0:00:03]}  Rh6+ {[%clk 0:00:07]} 107. Ke7 {[%clk 0:00:03]}  Rh7+ {[%clk 0:00:08]} 108. Kf6 {[%clk 0:00:04]}  Rh6+ {[%clk 0:00:08]} 109. Kg7 {[%clk 0:00:04]}  Rc6 {[%clk 0:00:09]} 110. Rf1 {[%clk 0:00:04]}  Rc5 {[%clk 0:00:09]} 111. Rb1+ {[%clk 0:00:03]}  Kc6 {[%clk 0:00:09]} 1/2-1/2


[Site "https://www.chess.com"]

[Event "Titled Tuesday Blitz March 07 Early 2023"]
[White "Buscar, Michael"]
[Black "Kopczynski, Michal"]
[WhiteFideId "2603616"]
[BlackFideId "1124200"]
[WhiteElo "2010"]
[BlackElo "2212"]
[Result "0-1"]
[Round "09"]
[TimeControl "180+2"]
[Date "2023.03.07"]
[WhiteClock "0:00:44"]
[BlackClock "0:00:39"]

1. Nf3 {[%clk 0:02:51]}  d6 {[%clk 0:02:59]} 2. g3 {[%clk 0:02:51]}  e5 {[%clk 0:02:59]} 3. Bg2 {[%clk 0:02:52]}  f5 {[%clk 0:03:00]} 4. d3 {[%clk 0:02:52]}  g6 {[%clk 0:03:00]} 5. e4 {[%clk 0:02:51]}  fxe4 {[%clk 0:02:56]} 6. dxe4 {[%clk 0:02:51]}  Nf6 {[%clk 0:02:53]} 7. Nc3 {[%clk 0:02:48]}  Bg7 {[%clk 0:02:53]} 8. Bg5 {[%clk 0:02:47]}  h6 {[%clk 0:02:53]} 9. Be3 {[%clk 0:02:45]}  O-O {[%clk 0:02:52]} 10. Qd2 {[%clk 0:02:45]}  Kh7 {[%clk 0:02:52]} 11. h3 {[%clk 0:02:44]}  Nc6 {[%clk 0:02:52]} 12. O-O-O {[%clk 0:02:41]}  Be6 {[%clk 0:02:52]} 13. Kb1 {[%clk 0:02:41]}  b5 {[%clk 0:02:50]} 14. Nd5 {[%clk 0:02:40]}  Nxe4 {[%clk 0:02:49]} 15. Qd3 {[%clk 0:02:35]}  Nf6 {[%clk 0:02:44]} 16. Nxf6+ {[%clk 0:02:34]}  Qxf6 {[%clk 0:02:41]} 17. Ng5+ {[%clk 0:02:32]}  hxg5 {[%clk 0:02:40]} 18. Bxc6 {[%clk 0:02:32]}  e4 {[%clk 0:02:39]} 19. Qd4 {[%clk 0:02:19]}  Qxd4 {[%clk 0:01:56]} 20. Bxd4 {[%clk 0:02:16]}  Bxd4 {[%clk 0:01:34]} 21. Bxa8 {[%clk 0:02:14]}  Bxf2 {[%clk 0:01:35]} 22. Bxe4 {[%clk 0:02:05]}  Bxg3 {[%clk 0:01:35]} 23. Rdf1 {[%clk 0:02:02]}  Rf4 {[%clk 0:01:22]} 24. Bd3 {[%clk 0:01:59]}  a6 {[%clk 0:01:14]} 25. Rhg1 {[%clk 0:01:40]}  Bxh3 {[%clk 0:00:53]} 26. Rxf4 {[%clk 0:01:26]}  Bxf4 {[%clk 0:00:53]} 27. Rh1 {[%clk 0:01:15]}  g4 {[%clk 0:00:53]} 28. Bf1 {[%clk 0:01:15]}  g5 {[%clk 0:00:47]} 29. c3 {[%clk 0:01:14]}  Kg6 {[%clk 0:00:46]} 30. Bxh3 {[%clk 0:01:02]}  gxh3 {[%clk 0:00:47]} 31. Rxh3 {[%clk 0:01:03]}  g4 {[%clk 0:00:46]} 32. Rh8 {[%clk 0:00:54]}  g3 {[%clk 0:00:44]} 33. Rg8+ {[%clk 0:00:54]}  Kf5 {[%clk 0:00:44]} 34. Kc2 {[%clk 0:00:53]}  Bg5 {[%clk 0:00:40]} 35. Rh8 {[%clk 0:00:44]}  g2 {[%clk 0:00:39]} 0-1


[Site "https://www.chess.com"]